Cogmind - Beta 13 @@@ ROGUE MODE // 2024.04.08 @ 06:39:56 Player: sick0r Result: Destroyed by G-47 Trooper with Particle Gun Performance ------------- Evolutions (2) 1000 Regions Visited (3) 600 Robots Destroyed (73) 365 Value Destroyed (2144) 2144 Prototype IDs (5) 100 Alien Tech Used (0) 0 Bonus (33) 33 TOTAL SCORE: 4242 Bonus ------- High Alert Combat Kills 33 Cogmind --------- Core Integrity 0/550 Matter 290/300 Energy 270/290 System Corruption 1% Temperature Cool (9) Movement Treading (490) Ox4 Location -8/Materials Parts ------- > --- POWER (2) -------- Improved Deuterium Engine > --- PROPULSION (2) --- Armored Treads > --- UTILITY (5) ------ Huge Storage Unit Improved Signal Interpreter Advanced Targeting Computer Improved Melee Analysis Suite > --- WEAPON (2) ------- Katana > --- INVENTORY (25) --- Light Nuclear Core Light Nuclear Core Improved Heat Sink Compact Battery (200) High-capacity Matter Pod (200) Advanced Targeting Computer Improved Melee Analysis Suite Improved Melee Analysis Suite Particle Charger ECM Suite Improved Weapon Shielding Medium Armor Plating System Shield Heavy EM Shotgun Heavy Laser Gatling Laser High-powered Field Laser Improved EM Pulse Cannon Improved EM Pulse Cannon Minigun Assault Cannon Missile Launcher Datajack Maul Peak State ------------ > --- POWER ------------ Improved Deuterium Engine Improved Deuterium Engine > --- PROPULSION ------- Aluminum Leg Carbon-fiber Leg > --- UTILITY ---------- Huge Storage Unit Improved Signal Interpreter Advanced Targeting Computer Improved Melee Analysis Suite Hacking Suite > --- WEAPON ----------- Flail Katana > --- INVENTORY -------- Improved Ion Engine Light Nuclear Core Light Nuclear Core Armored Treads Improved Heat Sink Compact Battery High-capacity Matter Pod Advanced Targeting Computer Improved Melee Analysis Suite Improved Melee Analysis Suite Particle Charger ECM Suite Improved Weapon Shielding Medium Armor Plating System Shield Heavy EM Shotgun Heavy Laser Gatling Laser High-powered Field Laser Minigun Assault Cannon Missile Launcher Datajack Maul [Rating: 38] Favorites ----------- Power Improved Ion Engine Engine Improved Ion Engine Power Core Light Nuclear Core Propulsion Light Treads Treads Light Treads Leg Aluminum Leg Wheel Compact Wheel Hover Unit Aerolev Unit Utility Huge Storage Unit Device Heat Sink Storage Huge Storage Unit Processor Advanced Targeting Computer Hackware Hacking Suite Protection Power Shielding Weapon Katana Energy Gun Advanced Beam Rifle Energy Cannon Beam Cannon Ballistic Gun Assault Rifle Ballistic Cannon Light Cannon Impact Weapon Flail Slashing Weapon Katana Build | -11 -10 -9 -8 ------- Run | Yrd Mat Mat Mat Slots Evolved 4 | . . 2 2 Power 1 | . . . 1 Propulsion . | . . . . Utility 3 | . . 2 1 Weapon . | . . . . Parts Attached 102 | 5 11 30 56 Power 32 | 1 3 6 22 Engine 27 | 1 3 6 17 Core 5 | . . . 5 Reactor . | . . . . Propulsion 31 | 2 2 6 21 Treads 11 | . . 2 9 Leg 4 | 2 . . 2 Wheel 12 | . 2 4 6 Hover 4 | . . . 4 Flight . | . . . . Utility 19 | . 2 10 7 Device 3 | . . 3 . Storage 4 | . 1 2 1 Processor 3 | . . . 3 Hackware 1 | . . . 1 Protection 8 | . 1 5 2 Artifact . | . . . . Weapon 20 | 2 4 8 6 Energy Gun 10 | 1 . 6 3 Energy Cannon 2 | . 1 1 . Ballistic Gun 4 | 1 3 . . Ballistic Cannon 1 | . . 1 . Launcher . | . . . . Special Weapon . | . . . . Impact Weapon 1 | . . . 1 Slashing Weapon 2 | . . . 2 Piercing Weapon . | . . . . Special Melee Weapon . | . . . . Unidentified Prototypes 5 | . . 2 3 Parts Lost 23 | . 1 6 16 Power 7 | . 1 1 5 Propulsion 10 | . . 3 7 Utility 3 | . . 1 2 Weapon 3 | . . 1 2 Highest Loss Streak 4 | . 1 4 4 To Critical Strikes . | . . . . Average Slot Usage (%) 94 | . 89 96 94 Engine 12 | . 13 10 13 Core 1 | . . . 2 Treads 5 | . . 3 7 Leg 3 | . 11 . 2 Wheel 10 | . 16 18 5 Device 2 | . . 7 1 Storage 13 | . 12 19 10 Processor 10 | . . . 19 Hackware 3 | . . . 6 Protection 8 | . 8 14 5 Energy Gun 5 | . 2 14 2 Energy Cannon 1 | . . 4 . Ballistic Gun 4 | . 21 1 . Impact Weapon 3 | . . . 7 Slashing Weapon 4 | . . . 7 Naked Turns . | . . . . Heaviest Build 112 | 6 19 98 112 Greatest Support 42 | 20 20 40 42 Greatest Overweight (x) 33 | . . 7 33 Average Overweight (x) 1 | . . 3 2 Largest Inventory Capacity 25 | 5 10 25 25 Average Capacity 21 | 5 9 24 24 Most Carried 25 | 5 10 25 25 Average Carried 19 | 2 7 20 24 Final Capacity 25 | 5 10 25 25 Final Carried 25 | 4 10 25 24 Class Distribution -------------------- 57% | Mutant 34% | Gladiator 8% | Scavenger-Gladiator Dominant Class ---------------- Mutant | -10/Materials Mutant | -9/Materials Gladiator | -8/Materials Resources | -11 -10 -9 -8 ----------- Run | Yrd Mat Mat Mat Matter Collected 1649 | 259 207 629 554 Remotely . | . . . . Salvage Created 2588 | 40 243 985 1320 Parts 180 | 1 26 79 74 Haulers Intercepted 1 | . . 1 . Recyclers Shooed . | . . . . Parts Field Recycled . | . . . . Retrieved Matter . | . . . . Parts Self-Destructed . | . . . . Prevented . | . . . . Kills | -11 -10 -9 -8 ------- Run | Yrd Mat Mat Mat Combat Hostiles Destroyed 54 | 1 7 19 27 Melee 20 | . . . 20 Guns 26 | 1 7 13 5 Cannons 6 | . . 6 . Classes Destroyed 9 | 1 3 3 2 Worker 3 | . . 2 1 Builder 4 | . 1 3 . Hauler 1 | . . 1 . Recycler 1 | . . . 1 Watcher 10 | . 1 5 4 Swarmer 13 | . 3 4 6 Grunt 27 | 1 4 7 15 Brawler 1 | . . . 1 Sentry 13 | . . 8 5 Best Kill Streak 7 | 1 3 7 4 Combat Bots Only 7 | 1 3 7 3 Max Kills in Single Turn 2 | 1 2 2 2 Gunslinging 1 | . . . 1 Exploded . | . . . . Melee 1 | . . . 1 Uniques/NPCs Destroyed . | . . . . Combat | -11 -10 -9 -8 -------- Run | Yrd Mat Mat Mat Hostile Shots Fired 469 | 4 54 184 227 Missed 127 | 2 12 60 53 Damage Taken 4520 | 20 414 1457 2629 Core 1011 | . 62 395 554 Absorbed by Shields . | . . . . Redirected to Shielding 24 | . 6 18 . Regen/Repaired (Parts) 718 | . 137 . 581 Core Remaining (%) 58 | 100 75 1 . Volleys Fired 125 | 3 37 72 13 Largest 2 | 2 2 2 2 Hottest 140 | 60 60 122 140 Shots Fired 249 | 6 74 143 26 Gun 216 | 6 74 110 26 Cannon 33 | . . 33 . Launcher . | . . . . Special . | . . . . Kinetic 92 | 3 68 21 . Thermal 157 | 3 6 122 26 Explosive . | . . . . Electromagnetic . | . . . . Robot Hit Streak 15 | 2 3 10 15 Robot Miss Streak 11 | 3 11 5 2 Penetration Max . | . . . . Secondary Targets 4 | . . 3 1 Max Gunslinging Chain 1 | . . 1 1 Shots Hit Robots 193 | 2 30 82 79 Core Hits 80 | 2 15 32 31 Critical Kills . | . . . . Critical Parts Destroyed 3 | . . . 3 Critical Strikes 24 | . . 9 15 Burn 11 | . . 9 2 Smash 3 | . . . 3 Sever 10 | . . . 10 Melee Attacks 83 | . . . 83 Impact 30 | . . . 30 Slashing 53 | . . . 53 Piercing . | . . . . Sneak Attacks 2 | . . . 2 Combat Hostiles . | . . . . Follow-up Attacks 10 | . . . 10 Damage Inflicted 4711 | 23 330 1703 2655 Guns 2061 | 23 330 1329 379 Cannons 374 | . . 374 . Explosions . | . . . . Melee 2276 | . . . 2276 Ramming . | . . . . Kinetic 523 | 12 309 202 . Thermal 1912 | 11 21 1501 379 Explosive . | . . . . Electromagnetic . | . . . . Impact 775 | . . . 775 Slashing 1501 | . . . 1501 Piercing . | . . . . Highest Corruption 1 | . . . 1 Average Corruption 1 | . . . 1 Corruption Purged . | . . . . Corruption Blocked . | . . . . Effects 7 | . . . 7 Message Errors 2 | . . . 2 Matter Fused 3 | . . . 3 Data Loss (minor) 2 | . . . 2 Overload Shots . | . . . . Overflow Damage 276 | . . . 276 Projectiles . | . . . . Explosions . | . . . . Melee 276 | . . . 276 Knockbacks 3 | . . 1 2 Impact 2 | . . . 2 Kinetic 1 | . . 1 . Secondary . | . . . . Self-Inflicted Damage . | . . . . Shots . | . . . . Rammed . | . . . . Targets Rammed . | . . . . Kicked . | . . . . Crushed . | . . . . Highest Temperature 587 | 12 6 587 372 Average Temperature 114 | 10 6 124 98 Received Heat Transfer 1794 | 12 54 426 1302 Effects 14 | . . 13 1 Shutdowns 4 | . . 3 1 Energy Bleed 2 | . . 2 . Matter Decay 1 | . . 1 . Short Circuit 1 | . . 1 . Damage (minor) 1 | . . 1 . Damage (major) 3 | . . 3 . Damage (core) 2 | . . 2 . Siege Activations . | . . . . Robots Corrupted . | . . . . Combat Hostiles . | . . . . Parts Fried 5 | . . . 5 Impact Corruptions 6 | . . . 6 Robots Melted . | . . . . Combat Hostiles . | . . . . Parts Melted 8 | . . 7 1 Heat Transferred 4367 | 25 50 3515 777 Parts Sabotaged . | . . . . Parts Stolen . | . . . . Parts Stripped . | . . . . Power Chain Reactions . | . . . . Alert | -11 -10 -9 -8 ------- Run | Yrd Mat Mat Mat Peak Influence 451 | 20 159 336 451 Initial 97 | . 13 1 97 Average 140 | 2 45 125 183 Maximum Alert Level 2 | . . 1 2 Low Security (%) 68 | 100 100 69 56 Level 1 28 | . . 30 38 Level 2 2 | . . . 5 Level 3 . | . . . . Level 4 . | . . . . Level 5 . | . . . . High Security . | . . . . Max Security . | . . . . Squads Dispatched 6 | . 2 . 4 Investigation 5 | . 2 . 3 Extermination . | . . . . Reinforcement 1 | . . . 1 Assault . | . . . . Garrison . | . . . . Intercept . | . . . . Searches Triggered . | . . . . Construction Impeded . | . . . . Haulers Reinforced . | . . . . Active Scanning Responses . | . . . . Cargo Convoy Interrupts . | . . . . Stealth | -11 -10 -9 -8 --------- Run | Yrd Mat Mat Mat Distress Signals 5 | . . 2 3 Communications Jammed . | . . . . Distress Signals . | . . . . Times Spotted 86 | 1 12 28 45 Peak Tracking Total 7 | 1 3 7 5 Tactical Retreats 12 | . . 1 11 Traps | -11 -10 -9 -8 ------- Run | Yrd Mat Mat Mat Traps Triggered 4 | . 2 . 2 Indirectly . | . . . . Trap Hack Attempts . | . . . . Triggered . | . . . . Disarmed . | . . . . Reprogrammed . | . . . . Reused . | . . . . Traps Extracted . | . . . . Installed . | . . . . Triggered . | . . . . Machines | -11 -10 -9 -8 ---------- Run | Yrd Mat Mat Mat Machines Disabled 5 | . 2 2 1 Max in Single Turn 1 | . 1 1 1 Machines Repaired . | . . . . Machines Dismantled . | . . . . Machines Sabotaged . | . . . . Overloaded Fab Kills . | . . . . Hacking | -11 -10 -9 -8 --------- Run | Yrd Mat Mat Mat Machines Accessed 11 | . 6 2 3 Terminals 6 | . 4 1 1 Fabricators . | . . . . Repair Stations 3 | . 1 . 2 Recycling Units 1 | . 1 . . Scanalyzers 1 | . . 1 . Garrison Access . | . . . . Total Hacks 55 | . 25 12 18 Successful 41 | . 20 10 11 Failed 14 | . 5 2 7 Catastrophic 1 | . 1 . . Database Lockouts . | . . . . Manual . | . . . . Terminals 21 | . 10 4 7 Fabricators . | . . . . Repair Stations 21 | . 10 . 11 Recycling Units 5 | . 5 . . Scanalyzers 8 | . . 8 . Garrison Access . | . . . . Terminal Hacks 14 | . 7 4 3 Record 7 | . 3 1 3 Branch Access Points 1 | . 1 . . Alert Level 2 | . 1 1 . Locate Traps 1 | . 1 . . Dispatch Records 1 | . 1 . . Maintenance Status 1 | . . 1 . Reinforcement Status 1 | . . 1 . Fabricator Hacks . | . . . . Repair Station Hacks 16 | . 8 . 8 Scan Component 8 | . 4 . 4 Repair 8 | . 4 . 4 Recycling Unit Hacks 5 | . 5 . . Recycle Component 3 | . 3 . . Process 2 | . 2 . . Scanalyzer 6 | . . 6 . Insert Component 3 | . . 3 . Analyze 3 | . . 3 . Garrison Access Hacks . | . . . . Unauthorized Hacks . | . . . . Terminals . | . . . . Fabricators . | . . . . Repair Stations . | . . . . Recycling Units . | . . . . Scanalyzers . | . . . . Garrison Access . | . . . . Data Cores Recovered . | . . . . Used . | . . . . Hacking Detections 7 | . 4 1 2 Full Trace Events 4 | . 1 1 2 Feedback Events 1 | . . . 1 Corruption 1 | . . . 1 Feedback Blocked . | . . . . Robot Schematics Acquired . | . . . . Robots Built . | . . . . Authchips . | . . . . Time . | . . . . Total Robot Build Rating . | . . . . Part Schematics Acquired . | . . . . Parts Built . | . . . . Authchips . | . . . . Time . | . . . . Total Part Build Rating . | . . . . Parts Repaired 8 | . 4 . 4 Time 200 | . 104 . 96 Parts Recycled 3 | . 3 . . Recycled Matter 326 | . 326 . . Retrieved Matter . | . . . . Retrieved Components . | . . . . Parts Scanalyzed 2 | . . 2 . Part Schematics Acquired . | . . . . Parts Damaged 2 | . . 2 . Bothacking | -11 -10 -9 -8 ------------ Run | Yrd Mat Mat Mat Used RIF Installer . | . . . . Robots Hacked . | . . . . Non-combat . | . . . . Combat . | . . . . Robot Hacks Applied . | . . . . Relay Couplers Released . | . . . . Fabnet Peak Effective % . | . . . . Robots Rewired . | . . . . Allies Hacked . | . . . . Hacks Repelled . | . . . . Allies | -11 -10 -9 -8 -------- Run | Yrd Mat Mat Mat Total Allies . | . . . . Largest Group . | . . . . Highest-Rated Group . | . . . . Highest-Rated Ally . | . . . . Total Orders . | . . . . Ally Attacks . | . . . . Total Damage . | . . . . Kills . | . . . . Allies Corrupted . | . . . . Allies Melted . | . . . . Intel | -11 -10 -9 -8 ------- Run | Yrd Mat Mat Mat Robot Analysis Total . | . . . . Derelict Logs Recovered . | . . . . Drone Launches . | . . . . Drone Recoveries . | . . . . Exploration | -11 -10 -9 -8 ------------- Run | Yrd Mat Mat Mat Turns Passed 5053 | 87 950 1259 2757 Spaces Moved 2110 | 67 642 613 788 Core 27 | 23 . . 4 Treads 314 | . . 41 273 Legs 352 | 44 191 . 117 Wheels 1416 | . 451 572 393 Hover 1 | . . . 1 Flight . | . . . . Fastest Speed 50 | 50 80 95 130 Average Speed 172 | 95 91 150 261 Slowest Speed 1700 | 120 120 320 1700 Overloaded Moves . | . . . . Propulsion Burnouts . | . . . . Robots Hopped . | . . . . Cave-ins Triggered . | . . . . Exploration Rate (%) 47 | 9 72 57 51 Regions Visited 3 Branch Regions . Pre-discovered Areas . | . . . . Known Exits Taken . | . . . . Unknown Exits Taken 3 | 1 1 1 . Scrap Searched . | . . . . Spaces Dug 3 | . . . 3 Terrain Destroyed 3 | . . . 3 Melee 3 | . . . 3 Projectile . | . . . . AOE . | . . . . Terrain Rammed . | . . . . Walls Destroyed . | . . . . Machines Disabled . | . . . . Actions | -11 -10 -9 -8 --------- Run | Yrd Mat Mat Mat Total 3178 | 83 934 810 1351 Wait 597 | . 218 50 329 Move 2107 | 66 641 612 788 Hop . | . . . . Pick Up 119 | 9 20 30 60 Fast Attach 11 | . 2 1 8 Attach 38 | 5 6 13 14 Detach 4 | . 1 3 . Swap 53 | . 3 16 34 Drop 55 | . 6 13 36 Fire 125 | 3 37 72 13 Melee 69 | . . . 69 Ram . | . . . . Kick . | . . . . Crush . | . . . . Escape Stasis . | . . . . Rewire . | . . . . Trap . | . . . . Miscellaneous . | . . . . Route ------- -11/Scrapyard -10/Materials (discovered 3 exits: *Mat x2 / *Min) -9/Materials (discovered 2 exits: *Mat / [*Min]) -8/Materials (discovered 3 exits: [*Fac] / *Sto x2) History --------- Turn | Location | Event 2 | -11/Scrapyard | Met Revision 17 64 | -11/Scrapyard | Discovered new exit (range 8) 88 | -11/Scrapyard | Entered Materials 231 | -10/Materials | Discovered new exit (range 7) 319 | -10/Materials | Build established: Mutant 348 | -10/Materials | Repaired Lgt. Ion Engine 376 | -10/Materials | Repaired Sml. Laser 411 | -10/Materials | Identified exit to Mines 563 | -10/Materials | Discovered new exit (range 9) 965 | -10/Materials | Repaired Lgt. Ion Engine 1002 | -10/Materials | Repaired Assault Rifle 1017 | -10/Materials | Discovered new exit (range 14) 1038 | -10/Materials | Entered another Materials area 1038 | -9/Materials | Evolved 2 slots: Utility x2 1258 | -9/Materials | Lost 4 parts (1p2n1w) 1273 | -9/Materials | Destroyed 7 combat bots 1324 | -9/Materials | Discovered new exit (range 16) 1563 | -9/Materials | Core integrity fell below 50% 1622 | -9/Materials | Core integrity fell below 20% 2199 | -9/Materials | Discovered new exit (range 10) 2297 | -9/Materials | Entered another Materials area 2297 | -8/Materials | Evolved 2 slots: Power x1, Utility x1 3107 | -8/Materials | Build established: Gladiator 3131 | -8/Materials | Discovered new exit (range 16) 3921 | -8/Materials | Discovered new exit (range 13) 4058 | -8/Materials | Identified exit to Storage 4132 | -8/Materials | Discovered exit to Storage (range 15) 4246 | -8/Materials | Repaired Huge Storage Unit 4262 | -8/Materials | Core integrity fell below 50% 4347 | -8/Materials | Repaired Lgt. Nuclear Core 4464 | -8/Materials | Repaired Lgt. Nuclear Core 4479 | -8/Materials | Repaired Com. Wheel 4545 | -8/Materials | Lost 4 parts (2p2n) 4883 | -8/Materials | Core integrity fell below 20% 5054 | -8/Materials | Destroyed by G-47 Trooper with Particle Gun Last Messages --------------- System corrupted: Component data lost. Y-45 Defender destroyed. K-01 Serf collects debris. Y-45 Defender destroyed. Acquired 51 matter. K-01 Serf collects debris. Triggered Alarm Trap. An alarm sounds. ALERT: Alarm triggered, dispatching investigation squad. Aluminum Leg destroyed. Use the buttons at the bottom right of the parts list, or press c/e/w/q, to visualize various stats related to parts and inventory items. Hacking Suite destroyed. G-47 Trooper destroyed. K-01 Serf collects debris. Carbon-fiber Leg destroyed. Imp. Deuterium Engine destroyed. Critical hit (Burn: +37). Map ----- +----------------------------------------------------+ | ???????????????????????????????? | | ???????????????????????????????? | | ???????????????????????????????? | | ???????????????????????????????? | | ???????????????????????????????? | | ???????????????????????????????? | | ???????????????????????????????? | | ???????????????????????????????? | | ???????????????????????????????? | | ???????????????????????????????? | | ???????????????????????????????? | | ???????????????????????????????? | | ???????????????????????????????? | | ???????????????????????????????? | | ???????????????????????????????? | | ????????????? ???????????????? | | #??????????? ??????????????? | | #???????????# #??????????????? | | #????###????# #??????????????? | | #????# #????# #??????#####???? | | #?########??# ??????? #???? | | #?#]]] **#??# ??????? #???? | | #?#]]] **#??# #???????#g #???? | | #?# #??# ######### #???? | | ??#### ##??# # ! # #???? | | ###### #???# # #@ #???? | | # #???# # !!! # #???? | | = + #???# #! !!!%+[ #???? | | # #???# # !!! #= #???? | | ###### ##??# ######### ##??? | | ##### #### ########k! #??? | | [%[* #??? | | =%!=! #??? | | ### ##+############ #??? | | ####+### ????????????## ##??? | | ##[%[= #??????????????# #???? | | ##[!"""#??????????????+ #???? | | ## = R"#??????????????# #???? | | ## """#??????????????# #???? | | ## #??????????????####???? | | ## #?????????????????????? | | ## "" #?????????????????????? | | ## """ #?????????????????????? | | ## """ #?????????????????????? | | ## "" #?????????????????????? | | %## """ #?????????????????????? | | !=!+% #?????????????????????? | | =[########?????????????????????? | | ###????????????????????????????? | | ???????????????????????????????? | +----------------------------------------------------+ Best States ------------- Heat Dissipation 41 Energy Generation 27 Energy Capacity 480 Matter Stores 500 Matter Capacity 500 Sight Range 16 Terrain Scan Range 14 Terrain Scan Density 10 Armor Coverage 225 Power Shielding 33 Evasion (%) 55 Targeting Accuracy 8 Melee Accuracy 6 Recoil Reduction 2 Offensive Hacking 10 Item Schematics ----------------- None Robot Schematics ------------------ None Fabricated ------------ Nothing Alien Tech Used ----------------- None Achievements -------------- Close Call Challenges ------------ None Game ------ Seed SystemSmartbombThruster Manual? 0 Play Time 01:14:55 Cumulative 3.0 hours Start 2024.04.08 @ 05:25:59 End 2024.04.08 @ 06:39:56 Sessions 1 Manual Loads 0 Difficulty Rogue Special Mode None Game No. 3 Rogue 3 Adventurer 0 Explorer 0 Win Type - Total 0 Types 0/0/0/0/0/0/0/0/0 Lore% 2 Gallery% 7 Achievement% 5 Wizard Run 0 Options --------- Layout 2 ASCII 0 Keyboard 0 Movement Mouse Keybinds 0 Fullscreen 1 Font 24/Smallcaps Map View 50x44 Zoom Use 0% Tactical HUD 0 Map Filters NONE Filters NONE Steam 1 RUN: d4ac8917-ed2c-4c71-8b43-c83768cacc96